[Event "*** SCC Grand Prix: Titled Tuesday Blitz"]
[Site "Chess.com"]
[Date "2020.07.21"]
[Round "2"]
[White "Alberquintin"]
[Black "Infernal_XaM"]
[Result "0-1"]
[WhiteElo "2475"]
[BlackElo "2979"]
[TimeControl "180+1"]
[EndTime "10:14:55 PDT"]
[Termination "Infernal_XaM won by resignation"]

1. c4 {[%clk 0:02:35]} 1... Nf6 {[%clk 0:02:52.4]} 2. Nc3 {[%clk 0:02:34.1]}
2... c5 {[%clk 0:02:50.7]} 3. Nf3 {[%clk 0:02:32.7]} 3... b6 {[%clk 0:02:51.2]}
4. g3 {[%clk 0:02:31.7]} 4... Bb7 {[%clk 0:02:51.6]} 5. Bg2 {[%clk 0:02:31.3]}
5... e6 {[%clk 0:02:52.2]} 6. O-O {[%clk 0:02:31.5]} 6... Be7 {[%clk 0:02:52.9]}
7. Re1 {[%clk 0:02:28.7]} 7... Ne4 {[%clk 0:02:51.7]} 8. Nxe4 {[%clk 0:02:26.6]}
8... Bxe4 {[%clk 0:02:51.4]} 9. d3 {[%clk 0:02:25.7]} 9... Bb7 {[%clk
0:02:50.4]} 10. e4 {[%clk 0:02:25.2]} 10... O-O {[%clk 0:02:50.3]} 11. d4 {[%clk
0:02:21.1]} 11... cxd4 {[%clk 0:02:50.5]} 12. Nxd4 {[%clk 0:02:21.6]} 12... d6
{[%clk 0:02:51.1]} 13. b3 {[%clk 0:02:20.1]} 13... Nd7 {[%clk 0:02:49.4]} 14.
Bb2 {[%clk 0:02:20]} 14... a6 {[%clk 0:02:49.8]} 15. Rc1 {[%clk 0:02:17.9]}
15... Qc7 {[%clk 0:02:49.6]} 16. f4 {[%clk 0:01:59.1]} 16... Rac8 {[%clk
0:02:45.5]} 17. Kh1 {[%clk 0:01:58.2]} 17... Rfe8 {[%clk 0:02:45.2]} 18. Nc2
{[%clk 0:01:35.3]} 18... Bf6 {[%clk 0:02:44.9]} 19. Bxf6 {[%clk 0:01:34]} 19...
Nxf6 {[%clk 0:02:44.8]} 20. Qd3 {[%clk 0:01:31.6]} 20... Qb8 {[%clk 0:02:43.9]}
21. Rcd1 {[%clk 0:01:29.1]} 21... Red8 {[%clk 0:02:44.4]} 22. Nd4 {[%clk
0:01:21.5]} 22... Qa8 {[%clk 0:02:42]} 23. h3 {[%clk 0:01:20.7]} 23... Nd7
{[%clk 0:02:38.2]} 24. Kh2 {[%clk 0:01:16.8]} 24... Nc5 {[%clk 0:02:34.4]} 25.
Qe3 {[%clk 0:01:16.6]} 25... Nd7 {[%clk 0:02:29.5]} 26. Rd2 {[%clk 0:01:15.2]}
26... Nc5 {[%clk 0:02:23.1]} 27. h4 {[%clk 0:01:10.6]} 27... Nd7 {[%clk
0:02:18.2]} 28. h5 {[%clk 0:01:09.5]} 28... Nf6 {[%clk 0:02:18.2]} 29. Bf3
{[%clk 0:01:08.9]} 29... h6 {[%clk 0:02:18.6]} 30. Kg2 {[%clk 0:01:05.7]} 30...
Re8 {[%clk 0:02:15.6]} 31. e5 {[%clk 0:01:04.4]} 31... dxe5 {[%clk 0:02:14.4]}
32. Qxe5 {[%clk 0:01:01.7]} 32... Rcd8 {[%clk 0:02:11.1]} 33. Red1 {[%clk
0:00:58.7]} 33... Rxd4 {[%clk 0:02:00.7]} 0-1

[Event "*** SCC Grand Prix: Titled Tuesday Blitz"]
[Site "Chess.com"]
[Date "2020.07.21"]
[Round "2"]
[White "Msb2"]
[Black "Alopekos"]
[Result "1-0"]
[WhiteElo "2845"]
[BlackElo "2339"]
[TimeControl "180+1"]
[EndTime "10:15:08 PDT"]
[Termination "Msb2 won by resignation"]

1. d4 {[%clk 0:03:00.9]} 1... Nf6 {[%clk 0:02:59.5]} 2. c4 {[%clk 0:03:01.2]}
2... e6 {[%clk 0:02:59.1]} 3. Nc3 {[%clk 0:03:01]} 3... d5 {[%clk 0:02:59.5]} 4.
cxd5 {[%clk 0:03:00.8]} 4... Nxd5 {[%clk 0:03:00.4]} 5. e4 {[%clk 0:03:00.3]}
5... Nxc3 {[%clk 0:03:01]} 6. bxc3 {[%clk 0:03:01.2]} 6... c5 {[%clk 0:03:01.5]}
7. Rb1 {[%clk 0:03:01.7]} 7... g6 {[%clk 0:02:53.6]} 8. h4 {[%clk 0:02:58.2]}
8... Bg7 {[%clk 0:02:51.5]} 9. Nf3 {[%clk 0:02:58.4]} 9... O-O {[%clk
0:02:34.3]} 10. h5 {[%clk 0:02:57.4]} 10... Nc6 {[%clk 0:02:31.7]} 11. e5 {[%clk
0:02:53.2]} 11... cxd4 {[%clk 0:02:09.8]} 12. cxd4 {[%clk 0:02:54.1]} 12... Qa5+
{[%clk 0:02:09.9]} 13. Bd2 {[%clk 0:02:53.2]} 13... Qd5 {[%clk 0:02:10.4]} 14.
Rb5 {[%clk 0:02:44.3]} 14... Qd8 {[%clk 0:01:26.8]} 15. Bg5 {[%clk 0:02:38.6]}
15... Qc7 {[%clk 0:00:46.1]} 16. Qd2 {[%clk 0:02:37.2]} 16... Ne7 {[%clk
0:00:31.1]} 17. Rc5 {[%clk 0:02:24.8]} 17... Nc6 {[%clk 0:00:20.8]} 18. Bf6
{[%clk 0:02:15.4]} 18... b6 {[%clk 0:00:19.7]} 19. Rc1 {[%clk 0:02:09.9]} 19...
Bb7 {[%clk 0:00:16.3]} 20. Qg5 {[%clk 0:02:09.2]} 20... h6 {[%clk 0:00:06.9]}
21. Qf4 {[%clk 0:02:07.1]} 21... g5 {[%clk 0:00:05.4]} 22. Nxg5 {[%clk
0:02:07.3]} 22... Nxd4 {[%clk 0:00:05.6]} 23. Rxc7 {[%clk 0:02:06.4]} 1-0

[Event "*** SCC Grand Prix: Titled Tuesday Blitz"]
[Site "Chess.com"]
[Date "2020.07.21"]
[Round "2"]
[White "LyonBeast"]
[Black "Sashadav97"]
[Result "1-0"]
[WhiteElo "3012"]
[BlackElo "2596"]
[TimeControl "180+1"]
[EndTime "10:15:10 PDT"]
[Termination "LyonBeast won by resignation"]

1. Nf3 {[%clk 0:03:00.9]} 1... c5 {[%clk 0:02:58.6]} 2. e3 {[%clk 0:03:00]} 2...
d5 {[%clk 0:02:54.4]} 3. d4 {[%clk 0:02:58.1]} 3... cxd4 {[%clk 0:02:32.3]} 4.
exd4 {[%clk 0:02:57.4]} 4... g6 {[%clk 0:02:32.8]} 5. c3 {[%clk 0:02:54.1]} 5...
Bg7 {[%clk 0:02:32.9]} 6. Bf4 {[%clk 0:02:50.6]} 6... Nf6 {[%clk 0:02:29.1]} 7.
Bd3 {[%clk 0:02:49.4]} 7... Bf5 {[%clk 0:02:23.4]} 8. Bxf5 {[%clk 0:02:48.3]}
8... gxf5 {[%clk 0:02:24.3]} 9. Qb3 {[%clk 0:02:47.6]} 9... Qc8 {[%clk
0:02:15.7]} 10. Nbd2 {[%clk 0:02:43.2]} 10... Nc6 {[%clk 0:02:08.1]} 11. O-O
{[%clk 0:02:42.3]} 11... e6 {[%clk 0:02:04.5]} 12. Bd6 {[%clk 0:02:25.9]} 12...
Bf8 {[%clk 0:01:55.9]} 13. Bxf8 {[%clk 0:02:13]} 13... Kxf8 {[%clk 0:01:56.8]}
14. c4 {[%clk 0:02:10.8]} 14... Kg7 {[%clk 0:01:46.4]} 15. Ne5 {[%clk
0:02:05.4]} 15... Rf8 {[%clk 0:01:26.3]} 16. Rac1 {[%clk 0:01:35.5]} 16... Nxd4
{[%clk 0:00:40.2]} 17. Qe3 {[%clk 0:01:34.5]} 1-0

[Event "*** SCC Grand Prix: Titled Tuesday Blitz"]
[Site "Chess.com"]
[Date "2020.07.21"]
[Round "2"]
[White "MNyuyu"]
[Black "Spartakus1975"]
[Result "1-0"]
[WhiteElo "2430"]
[BlackElo "2651"]
[TimeControl "180+1"]
[EndTime "10:15:13 PDT"]
[Termination "MNyuyu won by resignation"]

1. d4 {[%clk 0:03:00.9]} 1... d5 {[%clk 0:02:39]} 2. Nf3 {[%clk 0:03:00.5]} 2...
Nf6 {[%clk 0:02:36.8]} 3. Bf4 {[%clk 0:03:00.1]} 3... c5 {[%clk 0:02:35.3]} 4.
e3 {[%clk 0:03:00]} 4... Nc6 {[%clk 0:02:31.9]} 5. c3 {[%clk 0:02:59.7]} 5...
Qb6 {[%clk 0:02:26.7]} 6. Na3 {[%clk 0:02:59.1]} 6... a6 {[%clk 0:02:21.5]} 7.
Qb3 {[%clk 0:02:52.1]} 7... Qa7 {[%clk 0:02:08.4]} 8. dxc5 {[%clk 0:02:49.3]}
8... e6 {[%clk 0:02:00.7]} 9. Bd6 {[%clk 0:02:45.9]} 9... Bxd6 {[%clk
0:01:58.1]} 10. cxd6 {[%clk 0:02:45.5]} 10... O-O {[%clk 0:01:44.9]} 11. Nc2
{[%clk 0:02:44.7]} 11... e5 {[%clk 0:01:38.4]} 12. Be2 {[%clk 0:02:42.8]} 12...
Rd8 {[%clk 0:01:34.6]} 13. Qa3 {[%clk 0:02:41.7]} 13... Bf5 {[%clk 0:01:31.7]}
14. Rc1 {[%clk 0:02:37.8]} 14... Qb8 {[%clk 0:01:26.4]} 15. O-O {[%clk
0:02:34.9]} 15... Qxd6 {[%clk 0:01:17]} 16. Qxd6 {[%clk 0:02:34]} 16... Rxd6
{[%clk 0:01:17.4]} 17. Rfd1 {[%clk 0:02:34.2]} 17... Rad8 {[%clk 0:01:17.8]} 18.
h3 {[%clk 0:02:32]} 18... h6 {[%clk 0:01:16.2]} 19. Nce1 {[%clk 0:02:28.7]}
19... g5 {[%clk 0:01:12.6]} 20. Nd2 {[%clk 0:02:27.4]} 20... Kg7 {[%clk
0:01:11.1]} 21. Nb3 {[%clk 0:02:26.7]} 21... a5 {[%clk 0:01:02.4]} 22. Nc5
{[%clk 0:02:23.5]} 22... Bc8 {[%clk 0:01:00.3]} 23. a4 {[%clk 0:02:17.7]} 23...
b6 {[%clk 0:00:59.6]} 24. Nb3 {[%clk 0:02:16.9]} 24... Be6 {[%clk 0:00:57.4]}
25. Nd2 {[%clk 0:02:11.7]} 25... d4 {[%clk 0:00:53.8]} 26. cxd4 {[%clk
0:02:11.4]} 26... exd4 {[%clk 0:00:52.4]} 27. e4 {[%clk 0:02:01.1]} 27... Nb4
{[%clk 0:00:38.4]} 28. e5 {[%clk 0:02:00.7]} 28... Rd5 {[%clk 0:00:36.1]} 29.
exf6+ {[%clk 0:02:00.2]} 29... Kxf6 {[%clk 0:00:37]} 30. Bc4 {[%clk 0:01:59.5]}
30... Rc5 {[%clk 0:00:33.3]} 31. Ne4+ {[%clk 0:01:58.9]} 31... Ke7 {[%clk
0:00:33.1]} 32. Nxc5 {[%clk 0:01:58.4]} 1-0

[Event "*** SCC Grand Prix: Titled Tuesday Blitz"]
[Site "Chess.com"]
[Date "2020.07.21"]
[Round "2"]
[White "chessplayer9919"]
[Black "AniJak"]
[Result "1-0"]
[WhiteElo "2634"]
[BlackElo "2308"]
[TimeControl "180+1"]
[EndTime "10:15:13 PDT"]
[Termination "chessplayer9919 won by resignation"]

1. c4 {[%clk 0:02:55.5]} 1... e5 {[%clk 0:02:59.5]} 2. Nc3 {[%clk 0:02:55.4]}
2... Nc6 {[%clk 0:03:00]} 3. Nf3 {[%clk 0:02:55.6]} 3... d6 {[%clk 0:02:58.4]}
4. e4 {[%clk 0:02:53.3]} 4... g6 {[%clk 0:02:58.1]} 5. Be2 {[%clk 0:02:53.3]}
5... Bg7 {[%clk 0:02:58.3]} 6. O-O {[%clk 0:02:53.1]} 6... Nge7 {[%clk
0:02:58.6]} 7. d3 {[%clk 0:02:53.2]} 7... O-O {[%clk 0:02:58.5]} 8. Rb1 {[%clk
0:02:53.6]} 8... h6 {[%clk 0:02:57.5]} 9. b4 {[%clk 0:02:53.3]} 9... f5 {[%clk
0:02:55.8]} 10. b5 {[%clk 0:02:53.5]} 10... Nd4 {[%clk 0:02:55.5]} 11. Nxd4
{[%clk 0:02:51.9]} 11... exd4 {[%clk 0:02:55.8]} 12. Nd5 {[%clk 0:02:52.2]}
12... c6 {[%clk 0:02:53.8]} 13. Nxe7+ {[%clk 0:02:50.7]} 13... Qxe7 {[%clk
0:02:53.9]} 14. bxc6 {[%clk 0:02:51.6]} 14... bxc6 {[%clk 0:02:54.1]} 15. exf5
{[%clk 0:02:52.4]} 15... Bxf5 {[%clk 0:02:51.1]} 16. Bf3 {[%clk 0:02:53]} 16...
Rac8 {[%clk 0:02:50]} 17. Re1 {[%clk 0:02:52.4]} 17... Qf7 {[%clk 0:02:43.7]}
18. Ba3 {[%clk 0:02:52.2]} 18... Rfd8 {[%clk 0:02:37]} 19. Rb2 {[%clk
0:02:48.1]} 19... Kh7 {[%clk 0:02:36.7]} 20. Be4 {[%clk 0:02:47.5]} 20... Bxe4
{[%clk 0:02:20.7]} 21. Rxe4 {[%clk 0:02:48.4]} 21... d5 {[%clk 0:02:19.7]} 22.
cxd5 {[%clk 0:02:38.3]} 22... Qxd5 {[%clk 0:02:13.8]} 23. Rbe2 {[%clk
0:02:36.9]} 23... c5 {[%clk 0:02:08.9]} 24. Re7 {[%clk 0:02:33.1]} 24... Rd7
{[%clk 0:02:07.2]} 25. h4 {[%clk 0:02:31.9]} 25... Rxe7 {[%clk 0:01:59.7]} 26.
Rxe7 {[%clk 0:02:32.8]} 26... Qxa2 {[%clk 0:01:59.6]} 27. Qa4 {[%clk 0:02:17.9]}
27... Rf8 {[%clk 0:01:52.9]} 28. f3 {[%clk 0:02:03.6]} 28... Qb1+ {[%clk
0:01:38.4]} 29. Kh2 {[%clk 0:02:03.3]} 29... Qb8+ {[%clk 0:01:37.1]} 30. Kh1
{[%clk 0:01:57.1]} 30... Qb1+ {[%clk 0:01:36.5]} 31. Kh2 {[%clk 0:01:57]} 31...
Qb8+ {[%clk 0:01:36.8]} 32. Kh3 {[%clk 0:01:56.8]} 32... Qc8+ {[%clk 0:01:30.9]}
33. Kg3 {[%clk 0:01:56.2]} 33... Qb8+ {[%clk 0:01:30.6]} 34. Kf2 {[%clk
0:01:55.9]} 34... Qf4 {[%clk 0:01:29.3]} 35. Qd7 {[%clk 0:01:50.7]} 35... Qxh4+
{[%clk 0:01:28.4]} 36. Ke2 {[%clk 0:01:50.7]} 36... Qf6 {[%clk 0:01:22.2]} 37.
Bxc5 {[%clk 0:01:48]} 37... Kh8 {[%clk 0:01:14]} 38. Rxg7 {[%clk 0:01:46.9]}
38... Qxg7 {[%clk 0:01:12.4]} 39. Bxd4 {[%clk 0:01:46.6]} 39... Qxd4 {[%clk
0:01:10.4]} 40. Qxd4+ {[%clk 0:01:45.9]} 40... Kg8 {[%clk 0:01:09.6]} 41. Qxa7
{[%clk 0:01:45.5]} 1-0

[Event "*** SCC Grand Prix: Titled Tuesday Blitz"]
[Site "Chess.com"]
[Date "2020.07.21"]
[Round "2"]
[White "Smile2005"]
[Black "MVM2008"]
[Result "0-1"]
[WhiteElo "2402"]
[BlackElo "2170"]
[TimeControl "180+1"]
[EndTime "10:15:19 PDT"]
[Termination "MVM2008 won by resignation"]

1. Nf3 {[%clk 0:03:00.5]} 1... c5 {[%clk 0:02:57]} 2. g3 {[%clk 0:03:01.4]} 2...
b6 {[%clk 0:02:55.4]} 3. Bg2 {[%clk 0:03:02.3]} 3... Bb7 {[%clk 0:02:55.9]} 4.
O-O {[%clk 0:03:03.2]} 4... d6 {[%clk 0:02:56.2]} 5. d3 {[%clk 0:03:04.1]} 5...
e6 {[%clk 0:02:56.7]} 6. e4 {[%clk 0:03:04.4]} 6... g6 {[%clk 0:02:57.1]} 7. Nc3
{[%clk 0:03:02.3]} 7... Bg7 {[%clk 0:02:57.5]} 8. Bg5 {[%clk 0:03:02.7]} 8...
Ne7 {[%clk 0:02:56.9]} 9. Qd2 {[%clk 0:03:02.9]} 9... h6 {[%clk 0:02:56.2]} 10.
Be3 {[%clk 0:03:03]} 10... Nbc6 {[%clk 0:02:54.3]} 11. d4 {[%clk 0:03:03]} 11...
cxd4 {[%clk 0:02:54.3]} 12. Nxd4 {[%clk 0:03:03.9]} 12... g5 {[%clk 0:02:49.6]}
13. Rac1 {[%clk 0:03:04.2]} 13... Ne5 {[%clk 0:02:48]} 14. Qe2 {[%clk
0:03:02.4]} 14... a6 {[%clk 0:02:41.8]} 15. Rcd1 {[%clk 0:03:02.6]} 15... b5
{[%clk 0:02:40.5]} 16. b3 {[%clk 0:02:57.3]} 16... Rc8 {[%clk 0:02:39]} 17. Nb1
{[%clk 0:02:57.4]} 17... Qc7 {[%clk 0:02:22.7]} 18. f4 {[%clk 0:02:57.2]} 18...
gxf4 {[%clk 0:02:16.9]} 19. gxf4 {[%clk 0:02:58.1]} 19... N5c6 {[%clk
0:02:15.2]} 20. Nxc6 {[%clk 0:02:39.6]} 20... Nxc6 {[%clk 0:02:04]} 21. Rd2
{[%clk 0:02:39.6]} 21... O-O {[%clk 0:01:44.6]} 22. Rfd1 {[%clk 0:02:38.5]}
22... Rcd8 {[%clk 0:01:39]} 23. a3 {[%clk 0:02:33.4]} 23... Kh8 {[%clk
0:01:26.1]} 24. Qf2 {[%clk 0:02:15.6]} 24... Rg8 {[%clk 0:01:21.6]} 25. Bb6
{[%clk 0:02:14.7]} 25... Qe7 {[%clk 0:01:09.4]} 26. Bxd8 {[%clk 0:02:15.6]}
26... Nxd8 {[%clk 0:01:09.9]} 27. Rxd6 {[%clk 0:02:11.6]} 27... f5 {[%clk
0:01:08.1]} 28. Rd7 {[%clk 0:02:09.7]} 28... Qe8 {[%clk 0:00:58.6]} 29. Rxd8
{[%clk 0:02:07.8]} 29... Qxd8 {[%clk 0:00:56.6]} 30. Rxd8 {[%clk 0:02:07.2]}
30... Rxd8 {[%clk 0:00:57.5]} 31. Nd2 {[%clk 0:01:51.9]} 31... Bd4 {[%clk
0:00:56]} 32. exf5 {[%clk 0:01:52.1]} 32... Bxf2+ {[%clk 0:00:54.2]} 0-1

[Event "*** SCC Grand Prix: Titled Tuesday Blitz"]
[Site "Chess.com"]
[Date "2020.07.21"]
[Round "2"]
[White "Shubinkirill2003"]
[Black "Omk124"]
[Result "1-0"]
[WhiteElo "2657"]
[BlackElo "2345"]
[TimeControl "180+1"]
[EndTime "10:15:23 PDT"]
[Termination "Shubinkirill2003 won by resignation"]

1. e4 {[%clk 0:03:00.9]} 1... g6 {[%clk 0:02:59.9]} 2. d4 {[%clk 0:03:00.7]}
2... Bg7 {[%clk 0:03:00.4]} 3. Nf3 {[%clk 0:03:00.7]} 3... c6 {[%clk 0:03:00.6]}
4. Nc3 {[%clk 0:03:00.3]} 4... d6 {[%clk 0:03:01.1]} 5. Be3 {[%clk 0:02:58.2]}
5... Nf6 {[%clk 0:03:01.4]} 6. Qd2 {[%clk 0:02:55.8]} 6... Qa5 {[%clk
0:03:01.2]} 7. h4 {[%clk 0:02:47.1]} 7... Nbd7 {[%clk 0:02:43.6]} 8. Bd3 {[%clk
0:02:44.8]} 8... e5 {[%clk 0:02:42.8]} 9. Bh6 {[%clk 0:02:40.6]} 9... Bxh6
{[%clk 0:02:05.6]} 10. Qxh6 {[%clk 0:02:41.5]} 10... exd4 {[%clk 0:02:05.8]} 11.
Nxd4 {[%clk 0:02:41.3]} 11... Qh5 {[%clk 0:02:06.4]} 12. Qxh5 {[%clk 0:02:28.1]}
12... Nxh5 {[%clk 0:02:04.2]} 13. g3 {[%clk 0:02:28.3]} 13... Ne5 {[%clk
0:02:03.1]} 14. Be2 {[%clk 0:02:27.8]} 14... Nf6 {[%clk 0:02:01.9]} 15. O-O-O
{[%clk 0:02:22.7]} 15... O-O {[%clk 0:02:01.5]} 16. Rd2 {[%clk 0:02:02.4]} 16...
Bg4 {[%clk 0:01:52.8]} 17. f4 {[%clk 0:01:58.2]} 17... Bxe2 {[%clk 0:01:52.3]}
18. fxe5 {[%clk 0:01:57.3]} 18... dxe5 {[%clk 0:01:48.2]} 19. Ndxe2 {[%clk
0:01:57.3]} 19... b5 {[%clk 0:01:48.2]} 20. Rf1 {[%clk 0:01:51.9]} 20... Ng4
{[%clk 0:01:47.8]} 21. Rd6 {[%clk 0:01:42.4]} 21... Rac8 {[%clk 0:01:44]} 22.
Nd1 {[%clk 0:01:36.1]} 22... f5 {[%clk 0:01:40.7]} 23. exf5 {[%clk 0:01:32.3]}
23... gxf5 {[%clk 0:01:41.6]} 24. Kd2 {[%clk 0:01:17.3]} 24... Nf6 {[%clk
0:01:35.2]} 25. Ke1 {[%clk 0:01:11.8]} 25... Ne4 {[%clk 0:01:35]} 26. Re6 {[%clk
0:01:11.5]} 26... Rcd8 {[%clk 0:01:19.8]} 27. Rxe5 {[%clk 0:01:08.1]} 27... Rd2
{[%clk 0:01:14.3]} 28. Rxe4 {[%clk 0:01:07.2]} 28... Rxd1+ {[%clk 0:01:12.2]}
29. Kxd1 {[%clk 0:01:06]} 29... fxe4 {[%clk 0:01:13.1]} 30. Rxf8+ {[%clk
0:01:05.6]} 30... Kxf8 {[%clk 0:01:14]} 31. Kd2 {[%clk 0:01:06.1]} 1-0

[Event "*** SCC Grand Prix: Titled Tuesday Blitz"]
[Site "Chess.com"]
[Date "2020.07.21"]
[Round "2"]
[White "1f3_2g41-0"]
[Black "pfalcon1949"]
[Result "1-0"]
[WhiteElo "2367"]
[BlackElo "2000"]
[TimeControl "180+1"]
[EndTime "10:15:31 PDT"]
[Termination "1f3_2g41-0 won on time"]

1. e4 {[%clk 0:03:00.9]} 1... e6 {[%clk 0:02:59.5]} 2. d4 {[%clk 0:03:00.7]}
2... d5 {[%clk 0:03:00]} 3. Nc3 {[%clk 0:03:01.3]} 3... Bb4 {[%clk 0:02:59.6]}
4. exd5 {[%clk 0:03:01.4]} 4... exd5 {[%clk 0:02:59.1]} 5. Bd3 {[%clk 0:03:02]}
5... Ne7 {[%clk 0:02:52.9]} 6. Nf3 {[%clk 0:03:01.9]} 6... Nbc6 {[%clk
0:02:52.9]} 7. O-O {[%clk 0:03:01.7]} 7... Bg4 {[%clk 0:02:52.5]} 8. h3 {[%clk
0:02:53.8]} 8... Bh5 {[%clk 0:02:49.8]} 9. Be3 {[%clk 0:02:44.7]} 9... O-O
{[%clk 0:02:49.2]} 10. Bxh7+ {[%clk 0:02:40.5]} 10... Kh8 {[%clk 0:02:40.6]} 11.
Bd3 {[%clk 0:02:37.7]} 11... a6 {[%clk 0:02:33.1]} 12. a3 {[%clk 0:02:35.7]}
12... Bxc3 {[%clk 0:02:32.8]} 13. bxc3 {[%clk 0:02:34.6]} 13... Qd6 {[%clk
0:02:29.6]} 14. Be2 {[%clk 0:02:27.9]} 14... Bg6 {[%clk 0:02:25.9]} 15. Nh4
{[%clk 0:02:26.2]} 15... Be4 {[%clk 0:02:00.5]} 16. Bd3 {[%clk 0:02:15.5]} 16...
Qf6 {[%clk 0:01:47.3]} 17. Bxe4 {[%clk 0:02:06.3]} 17... Qxh4 {[%clk 0:01:43.7]}
18. Bf3 {[%clk 0:02:04.7]} 18... Nf5 {[%clk 0:01:42]} 19. Bd2 {[%clk 0:02:00.1]}
19... Rad8 {[%clk 0:01:40.6]} 20. Re1 {[%clk 0:01:56.5]} 20... Kg8 {[%clk
0:01:37.7]} 21. Bg4 {[%clk 0:01:55.7]} 21... Nd6 {[%clk 0:01:28.1]} 22. Bf3
{[%clk 0:01:45.8]} 22... Ne7 {[%clk 0:01:19.2]} 23. Qc1 {[%clk 0:01:42.4]} 1-0

[Event "*** SCC Grand Prix: Titled Tuesday Blitz"]
[Site "Chess.com"]
[Date "2020.07.21"]
[Round "2"]
[White "evgchess5"]
[Black "varacalli"]
[Result "1-0"]
[WhiteElo "2803"]
[BlackElo "2333"]
[TimeControl "180+1"]
[EndTime "10:15:35 PDT"]
[Termination "evgchess5 won by checkmate"]

1. e4 {[%clk 0:02:48.3]} 1... e5 {[%clk 0:02:59.9]} 2. Nf3 {[%clk 0:02:48.3]}
2... Nc6 {[%clk 0:02:59.9]} 3. Bc4 {[%clk 0:02:49]} 3... Bc5 {[%clk 0:02:59.6]}
4. O-O {[%clk 0:02:49]} 4... Nf6 {[%clk 0:02:59.7]} 5. d3 {[%clk 0:02:48.9]}
5... d6 {[%clk 0:02:59.4]} 6. c3 {[%clk 0:02:48.3]} 6... h6 {[%clk 0:02:58.9]}
7. Bb3 {[%clk 0:02:47.9]} 7... Bb6 {[%clk 0:02:58.1]} 8. Nbd2 {[%clk 0:02:44.9]}
8... Ne7 {[%clk 0:02:56.6]} 9. Nc4 {[%clk 0:02:44.6]} 9... Ng6 {[%clk
0:02:56.5]} 10. h3 {[%clk 0:02:41.3]} 10... O-O {[%clk 0:02:56.5]} 11. a4 {[%clk
0:02:41]} 11... c6 {[%clk 0:02:56.4]} 12. Nxb6 {[%clk 0:02:40.7]} 12... Qxb6
{[%clk 0:02:56.1]} 13. Be3 {[%clk 0:02:40.6]} 13... Qd8 {[%clk 0:02:56.2]} 14.
Re1 {[%clk 0:02:38.9]} 14... Nh5 {[%clk 0:02:56.1]} 15. d4 {[%clk 0:02:35.6]}
15... Qf6 {[%clk 0:02:48.9]} 16. Nxe5 {[%clk 0:02:32.8]} 16... dxe5 {[%clk
0:02:29.7]} 17. Qxh5 {[%clk 0:02:32.2]} 17... Be6 {[%clk 0:02:24]} 18. Bc2
{[%clk 0:02:24.1]} 18... Rfe8 {[%clk 0:02:21.1]} 19. Rad1 {[%clk 0:02:20.2]}
19... Rad8 {[%clk 0:02:20.9]} 20. dxe5 {[%clk 0:02:17.7]} 20... Nxe5 {[%clk
0:02:19.7]} 21. Rxd8 {[%clk 0:02:07.7]} 21... Rxd8 {[%clk 0:02:18.3]} 22. Bd4
{[%clk 0:02:07.5]} 22... g5 {[%clk 0:02:13.1]} 23. b4 {[%clk 0:01:36.3]} 23...
a6 {[%clk 0:02:08.7]} 24. a5 {[%clk 0:01:32.9]} 24... Qg6 {[%clk 0:02:01.7]} 25.
Qxg6+ {[%clk 0:01:32]} 25... Nxg6 {[%clk 0:02:02.6]} 26. Bd3 {[%clk 0:01:27.6]}
26... Ne5 {[%clk 0:01:57]} 27. Bf1 {[%clk 0:01:26.6]} 27... Nc4 {[%clk
0:01:55.9]} 28. f3 {[%clk 0:01:26]} 28... Na3 {[%clk 0:01:49.4]} 29. Kf2 {[%clk
0:01:21.6]} 29... Nb5 {[%clk 0:01:46.6]} 30. Ke3 {[%clk 0:01:20.8]} 30... Na3
{[%clk 0:01:42.6]} 31. Rc1 {[%clk 0:01:17.7]} 31... Nc4+ {[%clk 0:01:41.6]} 32.
Kf2 {[%clk 0:01:16.3]} 32... Kh7 {[%clk 0:01:33.8]} 33. Be2 {[%clk 0:01:15.2]}
33... Kg6 {[%clk 0:01:33.9]} 34. Rh1 {[%clk 0:01:12.7]} 34... h5 {[%clk
0:01:32.8]} 35. h4 {[%clk 0:01:12.3]} 35... g4 {[%clk 0:01:32]} 36. f4 {[%clk
0:01:05.5]} 36... f5 {[%clk 0:01:31]} 37. exf5+ {[%clk 0:01:01.8]} 37... Kxf5
{[%clk 0:01:31.9]} 38. Bd3+ {[%clk 0:00:58.9]} 38... Kxf4 {[%clk 0:01:29.2]} 39.
g3# {[%clk 0:00:59]} 1-0

[Event "*** SCC Grand Prix: Titled Tuesday Blitz"]
[Site "Chess.com"]
[Date "2020.07.21"]
[Round "2"]
[White "dodorox"]
[Black "Mikasinski"]
[Result "0-1"]
[WhiteElo "2143"]
[BlackElo "2412"]
[TimeControl "180+1"]
[EndTime "10:15:35 PDT"]
[Termination "Mikasinski won by resignation"]

1. d4 {[%clk 0:03:00.9]} 1... Nf6 {[%clk 0:02:59.7]} 2. c4 {[%clk 0:03:01]} 2...
g6 {[%clk 0:02:59.5]} 3. Nc3 {[%clk 0:03:00.8]} 3... Bg7 {[%clk 0:03:00]} 4. e4
{[%clk 0:03:00.9]} 4... d6 {[%clk 0:03:00.5]} 5. Nf3 {[%clk 0:03:00.7]} 5... O-O
{[%clk 0:03:01]} 6. h3 {[%clk 0:03:01]} 6... e5 {[%clk 0:03:01.1]} 7. d5 {[%clk
0:03:01.2]} 7... Nh5 {[%clk 0:03:01]} 8. g3 {[%clk 0:02:59.2]} 8... f5 {[%clk
0:03:00.3]} 9. exf5 {[%clk 0:02:50.8]} 9... gxf5 {[%clk 0:02:59.3]} 10. Nh4
{[%clk 0:02:48.1]} 10... Nf6 {[%clk 0:02:57.8]} 11. Bg5 {[%clk 0:02:38.4]} 11...
Na6 {[%clk 0:02:50.9]} 12. Qd2 {[%clk 0:02:30.8]} 12... f4 {[%clk 0:02:40.6]}
13. gxf4 {[%clk 0:02:20.6]} 13... h6 {[%clk 0:02:40.6]} 14. Bxf6 {[%clk
0:01:29.3]} 14... Qxf6 {[%clk 0:02:38.9]} 15. Nf3 {[%clk 0:01:17.3]} 15... Qxf4
{[%clk 0:02:28.8]} 16. Qxf4 {[%clk 0:01:16.3]} 16... Rxf4 {[%clk 0:02:26.6]} 17.
Be2 {[%clk 0:01:14.4]} 17... Bf5 {[%clk 0:02:14.3]} 18. O-O-O {[%clk 0:01:06.6]}
18... e4 {[%clk 0:02:06.5]} 19. Nd4 {[%clk 0:00:54.1]} 19... Bxd4 {[%clk
0:02:03.2]} 20. Rxd4 {[%clk 0:00:50.1]} 20... Rxf2 {[%clk 0:02:03.1]} 21. Rg1+
{[%clk 0:00:40.2]} 21... Kh8 {[%clk 0:01:51.4]} 22. Bd1 {[%clk 0:00:24.7]} 22...
Nc5 {[%clk 0:01:47.4]} 23. Nxe4 {[%clk 0:00:13.6]} 23... Bxe4 {[%clk 0:01:36.4]}
0-1